[Event "4NCL 2021-22"]
[Site "England"]
[Date "2022.04.30"]
[Round "7.61"]
[White "McClement, Andrew"]
[Black "Macfarlane, Donald"]
[Result "1-0"]
[ECO "B90"]
[WhiteElo "2221"]
[BlackElo "2200"]
[Annotator "TA RC"]
[PlyCount "81"]
[EventDate "2021.11.27"]
[EventType "team-tourn"]
[EventCountry "ENG"]
[SourceTitle "playchess.com"]
[Source "ChessBase"]
[SourceQuality "1"]
[TimeControl "40/6000+30:3000+30"]

{[%evp 12,81,36,29,32,41,35,28,60,49,40,30,34,-17,27,0,12,-31,100,90,160,0,0,-10,0,-44,-70,-66,-34,-26,-33,-33,-37,-32,-35,-37,21,25,27,16,27,31,27,29,25,24,87,97,94,99,104,101,88,26,237,233,584,467,576,504,29988,29972,29971,29974,29973,29975,29973,29974,29980,29981,29981,29978]} 1. Nf3 {[%emt 0:00:03]} c5 {[%emt 0:01:37]} 2. e4 {[%emt 0:00:05]} d6 {[%emt 0:05:25]} 3. d4 {[%emt 0:00:01]} cxd4 {[%emt 0:00:08]} 4. Nxd4 {[%emt 0:00:03]} Nf6 {[%emt 0:00:12]} 5. Nc3 {[%emt 0:00:01]} a6 {[%emt 0:00:14]} 6. Be3 {[%emt 0:00:04]} Qc7 {[%emt 0:04:17]} 7. f3 {[%emt 0:00:35]} h5 {[%emt 0:04:41] B90: Sicilian Najdorf: Unusual White 6th moves, 6 Be3 Ng4 and 6 Be3 e5.} 8. Qd2 e6 {[%emt 0:01:47] Prevents Nd5.} 9. O-O-O {[%emt 0:00:41]} Nc6 {[%emt 0:00:53] White has an edge.} 10. Bd3 {[%emt 0:02:18]} Ne5 {[%emt 0:04:40]} 11. Kb1 {[%emt 0:01:53]} b5 {[%emt 0:05:37]} 12. g3 {[%emt 0:02:40] [#]} (12. f4 $14 Nc4 13. Bxc4 bxc4 14. Nf3) 12... Bb7 $146 {[%emt 0:06:12]} ({Predecessor:} 12... Be7 13. h3 Nc4 14. Bxc4 Qxc4 15. g4 g6 16. Bg5 b4 17. Nce2 Rb8 18. Nb3 Qc7 19. Bxf6 Bxf6 20. Qxd6 Qxd6 21. Rxd6 hxg4 22. fxg4 {½-½ (55) Amon,N (1976)-Djoric,D (2288) Hum na Sutli 2015}) 13. h3 {[%emt 0:04:09]} Rc8 {[%emt 0:06:33]} 14. g4 {[%emt 0:00:46]} d5 {[%emt 0:02:02]} (14... b4 $15 {stays ahead.} 15. Nce2 d5 16. exd5 Nxd5) 15. g5 $1 $16 {[%emt 0:06:02]} b4 {[%emt 0:03:28] [#]} 16. gxf6 $2 {[%emt 0:06:40]} ({White has to play} 16. Ncb5 $1 $16 {[%cal Rb5c7][%mdl 512]} axb5 17. gxf6 Nxd3 18. fxg7 (18. Qxd3 gxf6 19. Qxb5+ Qd7 $11) (18. Nxb5 Qd7 $11) 18... Bxg7 19. cxd3 (19. Qxd3 dxe4 20. Qxb5+ Bc6 $14)) 16... bxc3 $11 {[%emt 0:01:20]} 17. fxg7 {[%emt 0:01:10]} Bxg7 {[%emt 0:01:01]} 18. Qxc3 {[%emt 0:04:04]} (18. Qg2 $5 {[%cal Rg2g7]} Rg8 19. b3 $17) 18... Qxc3 {[%emt 0:03:22]} 19. bxc3 {[%emt 0:00:19] [#]} Nxf3 $1 {[%emt 0:07:20]} 20. exd5 {[%emt 0:01:03]} (20. Nxf3 dxe4 21. Rhg1 Bxc3 $17) 20... Bxd5 {[%emt 0:01:24] ...Nxd4 is the strong threat.} 21. Rhf1 {[%emt 0:00:47]} Ne5 {[%emt 0:01:21]} 22. Bxa6 {[%emt 0:01:46]} Rxc3 {[%emt 0:01:30]} 23. Bb5+ {[%emt 0:05:32]} Ke7 {[%emt 0:06:19]} (23... Kf8 $1 $15 24. Nf5 exf5) 24. Bd2 {[%emt 0:03:17]} Rxh3 {[%emt 0:20:41]} 25. Bb4+ {[%emt 0:04:29]} Kd8 {[%emt 0:00:08] [#]} 26. Nf5 $1 {[%emt 0:33:46]} Bf8 {[%emt 0:01:28]} 27. Bxf8 {[%emt 0:03:17]} Rxf8 {[%emt 0:00:07]} 28. c4 $1 {[%emt 0:00:08][%cal Bc2c4,Bc4d5,Bd5d6,Bd6d7][%mdl 96] Hoping for Ng7. Pin} Kc7 {[%emt 0:02:33]} 29. cxd5 $16 {[%emt 0:00:50][%cal Of1e1] Black must now prevent Rfe1!} exf5 {[%emt 0:00:06] [#]} 30. d6+ $1 {[%emt 0:01:58]} Kb6 {[%emt 0:01:06] [#]} 31. d7 $1 {[%emt 0:02:06]} Rd8 {[%emt 0:10:15]} 32. a4 {[%emt 0:12:20]} ({But not} 32. Rxf5 $6 Kxb5 33. Rxe5+ Kc6 $11) ({White should try} 32. Rd5 $16 f6 33. a4 (33. Rxf5 Rh1+ 34. Kc2 Rh2+ 35. Kc1 Rh1+ 36. Kd2 Rh2+ 37. Ke1 Rh1+ 38. Ke2 Rh2+ 39. Ke1 Rh1+ 40. Kf2 Kc7 $14)) 32... f6 {[%emt 0:07:47] This costs Black the game.} (32... Rb3+ $1 $11 {and Black is okay.} 33. Kc2 Rf3) 33. Rxf5 $18 {[%emt 0:01:28]} Ng4 {[%emt 0:00:02]} (33... Rf3 34. Rxh5 Rf4) 34. Rd6+ {[%emt 0:01:26]} Kb7 {[%emt 0:00:42]} 35. Rc5 {[%emt 0:03:30] White wants to mate with Ba6+.} h4 {[%emt 0:01:38]} (35... Rb3+ $18 36. Kc2 Rxb5 37. axb5 h4) 36. Rc8 {[%emt 0:00:41] White mates.} Rxd7 {[%emt 0:00:00]} 37. Bxd7 {[%emt 0:00:13]} Rh1+ {[%emt 0:00:00]} 38. Rc1 {[%emt 0:00:28]} Rxc1+ {[%emt 0:00:34]} 39. Kxc1 {[%emt 0:00:09]} Kc7 {[%emt 0:00:01] [#]} 40. Bxg4 $1 {[%emt 0:01:54]} Kxd6 {[%emt 0:00:05]} 41. Kd2 {[%emt 0:50:03] Weighted Error Value: White=0.17 (very precise) /Black=0.54} 1-0

[Event "4NCL 2021-22"]
[Site "England"]
[Date "2022.04.30"]
[Round "7.62"]
[White "Zeidler, Sven P."]
[Black "Mihalik, Agoston"]
[Result "1/2-1/2"]
[ECO "B23"]
[WhiteElo "2172"]
[BlackElo "2165"]
[Annotator "TA"]
[PlyCount "61"]
[EventDate "2021.11.27"]
[EventType "team-tourn"]
[EventCountry "ENG"]
[SourceTitle "playchess.com"]
[Source "ChessBase"]
[SourceQuality "1"]
[TimeControl "40/6000+30:3000+30"]

{[%evp 9,61,7,6,0,0,-27,-30,-33,-22,-29,-28,-47,-24,-81,-71,-72,-82,-140,-129,-130,-68,-73,-74,-160,-58,-75,-23,-52,-41,-50,-62,-53,-59,-193,-114,-107,-96,-390,-395,-481,-484,-656,-650,-618,0,0,0,0,0,0,0,0,0,0]} 1. e4 {[%emt 0:00:03]} c5 {[%emt 0:19:22]} 2. Nc3 {[%emt 0:00:05]} a6 {[%emt 0:00:09]} 3. f4 {[%emt 0:00:05]} e6 {[%emt 0:01:48]} 4. Nf3 {[%emt 0:00:26]} b5 {[%emt 0:00:34]} 5. d3 {[%emt 0:00:27]} Bb7 {[%emt 0:01:27]} 6. Be2 {[%emt 0:00:14] B23: Closed Sicilian: Lines without g3.} d5 {[%emt 0:01:28]} 7. exd5 {[%emt 0:00:39]} exd5 {[%emt 0:00:09]} 8. d4 {[%emt 0:00:04] Black has an edge.} Nf6 {[%emt 0:01:14]} 9. Be3 {[%emt 0:01:00]} Nbd7 {[%emt 0:16:30]} 10. O-O {[%emt 0:16:24] [#]} Be7 $146 {[%emt 0:03:04]} (10... Ng4 $5 {[%cal Rg4e3]} 11. Bd2 Be7 $15) ({Predecessor:} 10... Bd6 11. Ne5 Qe7 12. Bf3 O-O 13. Qd2 b4 14. Ne2 cxd4 15. Bxd4 Ne4 16. Bxe4 dxe4 17. Nxd7 Qxd7 {½-½ (53) Janocha,J (1744)-Domanski,L (1975) Gora Sw Anny 2016}) 11. Nh4 {[%emt 0:11:06]} (11. dxc5 $11 Nxc5 12. a4) 11... O-O $17 {[%emt 0:15:31]} 12. Nf5 {[%emt 0:14:53]} Re8 {[%emt 0:00:13]} 13. Bf3 {[%emt 0:00:16]} (13. a3 $142) 13... Bf8 {[%emt 0:02:04] Strongly threatening ...g6.} 14. Bf2 {[%emt 0:04:32]} Ne4 {[%emt 0:08:20]} ({Black should play} 14... g6 $17 15. Ng3 (15. Ne3 $2 cxd4 16. Nexd5 dxc3 $19) 15... Ne4 16. Bxe4 dxe4) 15. Bxe4 $15 {[%emt 0:05:39]} dxe4 {[%emt 0:00:09]} 16. Qg4 {[%emt 0:00:06]} (16. dxc5 $142 Nxc5 17. Qg4) 16... Kh8 {[%emt 0:19:07]} ({Black should try} 16... h5 $17 17. Qd1 (17. Qxh5 $2 g6 $19) 17... Qf6) 17. dxc5 {[%emt 0:06:29]} Nxc5 {[%emt 0:00:58]} ({Better is} 17... Nf6 $17 18. Qg5 h6) 18. Rad1 {[%emt 0:05:46]} Qc7 {[%emt 0:01:02]} 19. Nd5 {[%emt 0:03:32]} Bxd5 {[%emt 0:01:38]} 20. Rxd5 {[%emt 0:00:09]} Ne6 {[%emt 0:00:17][%csl LRc2,LRf4]} 21. Nd4 {[%emt 0:14:25] [#]} (21. c3 $15) 21... Nxd4 {[%emt 0:05:41]} ({Stronger than} 21... Nxf4 22. Rf5 (22. Rd7 $2 Qc8 $17) 22... Ng6 23. Re1 $15) ({Worse is} 21... Qxf4 22. Qxf4 Nxf4 23. Rf5 $15) (21... Qc4 $1 $19 {[%cal Rc4d5]} 22. Nxe6 (22. Rd7 $2 Qc8 $19) 22... Rxe6) 22. Bxd4 $17 {[%emt 0:00:49]} Qxc2 {[%emt 0:01:14]} 23. Rg5 $2 {[%emt 0:05:41][%mdl 8192]} (23. Qd1 $17 Qc4 24. b3) 23... f6 $19 {[%emt 0:00:21]} 24. Rh5 {[%emt 0:00:47]} e3 {[%emt 0:01:19][%cal Be4e3,Be3e2][%mdl 32]} 25. f5 {[%emt 0:02:17] aiming for Qg6.} e2 {[%emt 0:00:31]} 26. Re1 {[%emt 0:01:24] Black must now prevent Qh3.} Qe4 $2 {[%emt 0:03:28]} (26... Bc5 $19 27. b4 {[#]} Re4 $1 28. Rxh7+ Kxh7 29. Qh3+ Kg8 30. Bxc5 Qxa2) 27. Rxh7+ $1 $11 {[%emt 0:02:57][%mdl 64] Decoy. The position is equal.} Kxh7 {[%emt 0:00:50]} 28. Qh3+ {[%emt 0:00:05]} Kg8 {[%emt 0:00:47]} 29. Qb3+ {[%emt 0:00:05]} Kh7 {[%emt 0:04:45]} 30. Qh3+ {[%emt 0:00:05]} Kg8 {[%emt 0:00:04]} 31. Qb3+ {[%emt 0:00:06] Weighted Error Value: White=0.53/Black=0.31} 1/2-1/2

[Event "4NCL 2021-22"]
[Site "England"]
[Date "2022.04.30"]
[Round "7.63"]
[White "Robertson, J Stuart"]
[Black "Bullen, Alex"]
[Result "0-1"]
[ECO "E46"]
[WhiteElo "2174"]
[BlackElo "2079"]
[Annotator "TA"]
[PlyCount "118"]
[EventDate "2021.11.27"]
[EventType "team-tourn"]
[EventCountry "ENG"]
[SourceTitle "playchess.com"]
[Source "ChessBase"]
[SourceQuality "1"]
[TimeControl "40/6000+30:3000+30"]

{[%evp 13,118,4,0,0,0,0,2,-6,10,-87,-40,-40,-31,-37,-15,-19,0,0,5,1,89,67,59,63,123,-38,18,28,36,38,53,34,36,36,26,47,111,98,167,183,255,242,206,185,224,119,125,140,154,136,125,117,200,160,162,158,165,153,146,179,179,181,131,0,233,237,229,233,234,-18,-13,-13,-8,-32,0,-10,-11,-10,-10,-15,-18,-27,-10,-18,-18,-39,-47,-134,-9,-6,-8,-6,-6,-6,0,0,0,-14,-6,-29,-33,-866,-841,-29990,-29991,-29995,-29996]} 1. d4 {[%emt 0:05:30]} Nf6 {[%emt 0:00:49]} 2. c4 {[%emt 0:00:04]} e6 {[%emt 0:00:08]} 3. Nc3 {[%emt 0:00:05]} Bb4 {[%emt 0:00:08]} 4. e3 {[%emt 0:00:05]} O-O {[%emt 0:00:14]} 5. Nge2 {[%emt 0:00:03]} Re8 {[%emt 0:00:12]} 6. a3 {[%emt 0:00:05]} Bf8 {[%emt 0:00:09]} 7. Ng3 {[%emt 0:00:44]} d5 {[%emt 0:00:10]} 8. Be2 {[%emt 0:03:12] E46: Nimzo-Indian: Rubinstein: 4 e3 0-0 5 Ne2 without early Bd3.} b6 {[%emt 0:01:48]} 9. O-O {[%emt 0:01:23] 9.0-0 scores better than 9.cxd5.} Bb7 {[%emt 0:01:25]} 10. b4 {[%emt 0:05:08][%cal Bb2b4,Bb4b5][%mdl 32] The position is equal.} dxc4 {[%emt 0:01:58] [#]} 11. e4 $146 {[%emt 0:05:19]} (11. Bxc4 $11 c5 12. bxc5) ({Predecessor:} 11. Bxc4 c5 12. dxc5 bxc5 13. b5 Nbd7 14. e4 Ne5 15. Be2 c4 16. Qc2 Rc8 17. Rd1 {½-½ (69) Tran,T (2547)-Tan,J (2450) Kuala Lumpur 2017}) 11... c5 {[%emt 0:04:34]} (11... a5 $17 12. b5 c5) 12. dxc5 {[%emt 0:02:37]} bxc5 {[%emt 0:01:58]} 13. b5 {[%emt 0:06:21]} Nbd7 {[%emt 0:07:46]} (13... a6 $5 {[%cal Ra6b5]}) 14. Bf4 {[%emt 0:07:28]} Qa5 {[%emt 0:19:45]} 15. Qc2 {[%emt 0:01:22]} a6 {[%emt 0:04:22]} 16. Rfb1 {[%emt 0:07:02]} e5 {[%emt 0:11:41]} (16... axb5 $11 17. Nxb5 (17. Rxb5 Qa6 $11) 17... Bc6 18. Qxc4 e5) 17. Be3 {[%emt 0:07:17]} axb5 {[%emt 0:07:28]} 18. Nxb5 {[%emt 0:03:30]} Qa4 {[%emt 0:04:43]} (18... Bc6 $14 19. Bxc4 Rec8) 19. Qc1 $2 {[%emt 0:06:35]} (19. Qxa4 $16 Rxa4 20. Bd1 (20. Nc3 Ra7 $14)) 19... Reb8 {[%emt 0:04:15]} (19... Nxe4 $15 20. Nc7 Nxg3 21. hxg3 Be4) 20. Nc3 $11 {[%emt 0:04:05][%mdl 1024] White has compensation.} Qa6 {[%emt 0:02:33]} 21. a4 {[%emt 0:02:12]} Bc6 {[%emt 0:11:33]} 22. a5 {[%emt 0:03:28]} Rb4 {[%emt 0:01:59]} 23. f3 {[%emt 0:01:59]} Rab8 {[%emt 0:00:50]} 24. Qf1 {[%emt 0:01:23]} Rxb1 {[%emt 0:01:47]} (24... g6 $14) 25. Nxb1 $16 {[%emt 0:00:19]} Bb5 {[%emt 0:08:03]} (25... Qa7 $16) 26. Nc3 $18 {[%emt 0:02:18]} Ne8 {[%emt 0:00:34]} (26... Qa8 $142 27. Nxb5 (27. Bxc4 Bxc4 28. Qxc4 Rb4 $14) 27... Rxb5) 27. Nxb5 {[%emt 0:00:31]} Qxb5 {[%emt 0:00:04]} 28. Bxc4 {[%emt 0:00:41]} Qb4 {[%emt 0:00:28]} 29. Bd5 {[%emt 0:10:50]} ({Better is} 29. a6 $18 {Strongly threatening a7.} Nc7 30. Nf5) 29... Nc7 {[%emt 0:01:16]} 30. Bc6 {[%emt 0:00:20] This bishop pair is nice.} Nf6 {[%emt 0:01:00]} 31. a6 {[%emt 0:01:21][%cal Ba5a6,Ba6a7][%mdl 32] a7 is the strong threat.} Rb6 {[%emt 0:01:42]} 32. Bb7 {[%emt 0:02:11]} Nfe8 {[%emt 0:01:48]} (32... g6 $16 {keeps fighting.} 33. Bc8 Rb5) 33. Bf2 {[%emt 0:04:24]} Nd6 {[%emt 0:03:15]} 34. Bd5 {[%emt 0:00:12]} Nxd5 {[%emt 0:01:56]} 35. exd5 {[%emt 0:00:04]} Rb8 {[%emt 0:00:18][%cal Bb6b8,Bb8a8,Ba8a7][%mdl 32]} 36. a7 {[%emt 0:01:47]} Ra8 {[%emt 0:00:04]} 37. Qa6 {[%emt 0:00:25]} Nc8 {[%emt 0:01:04]} 38. Rd1 {[%emt 0:07:20]} (38. Rf1 $16) 38... Qb6 {[%emt 0:02:44]} (38... Qb3 $11 39. Qf1 Rxa7) 39. Qxb6 {[%emt 0:01:41]} Nxb6 {[%emt 0:00:02]} 40. d6 {[%emt 0:00:05]} Nd7 {[%emt 0:01:34]} 41. Ne4 $2 {[%emt 0:56:22]} (41. Ra1 $18) 41... Rxa7 $11 {[%emt 0:51:47]} 42. Bxc5 {[%emt 0:00:00]} Rb7 {[%emt 0:00:00] [#] Threatens to win with ...f5.} 43. Ba3 {[%emt 0:00:00]} Ra7 {[%emt 0:00:00]} (43... f5 $5 {[%cal Rf5e4]} 44. Ng5 (44. Nc5 Nxc5 45. Bxc5 Kf7 $17) 44... Rb3 $15) 44. Rd3 {[%emt 0:00:00]} f5 {[%emt 0:00:00]} 45. Ng5 {[%emt 0:00:00]} h6 {[%emt 0:00:00]} 46. Ne6 {[%emt 0:00:00]} Kf7 {[%emt 0:00:00]} 47. Nc7 {[%emt 0:00:00]} g5 {[%emt 0:00:00]} 48. Kf2 {[%emt 0:00:00]} Bg7 {[%emt 0:00:00]} 49. Ke3 {[%emt 0:00:00]} Bf6 {[%emt 0:00:00]} 50. g4 {[%emt 0:00:00] [#]} ({White should try} 50. Rb3 $15) 50... fxg4 {[%emt 0:00:00]} ({Black should play} 50... e4 $1 $17 {[%cal Re4d3]} 51. fxe4 fxg4) 51. fxg4 {[%emt 0:00:00]} Ra4 {[%emt 0:00:00]} 52. h3 {[%emt 0:00:00]} e4 {[%emt 0:00:00]} 53. Rb3 {[%emt 0:00:00]} Bd4+ {[%emt 0:00:00]} 54. Ke2 {[%emt 0:00:00]} Be5 {[%emt 0:00:00]} 55. Bb4 {[%emt 0:00:00]} Bf4 {[%emt 0:00:00]} 56. Ba3 {[%emt 0:00:00]} Rd4 {[%emt 0:00:00] White must now prevent ...Rd2+.} 57. Rb7 $2 {[%emt 0:00:00][%mdl 8192]} (57. Bb4 $15) 57... Rd2+ $19 {[%emt 0:00:00]} 58. Ke1 {[%emt 0:00:00]} e3 {[%emt 0:00:00]} 59. Nd5 {[%emt 0:00:00]} Bg3+ {[%emt 0:00:00] What a bad dream for White.  Weighted Error Value: White=0.58/Black=0.30} 0-1

[Event "4NCL 2021-22"]
[Site "England"]
[Date "2022.04.30"]
[Round "7.64"]
[White "Khoury, Theo"]
[Black "Stewart, Ashley"]
[Result "0-1"]
[ECO "C11"]
[WhiteElo "2011"]
[BlackElo "2062"]
[Annotator "TA"]
[PlyCount "94"]
[EventDate "2021.11.27"]
[EventType "team-tourn"]
[EventCountry "ENG"]
[SourceTitle "playchess.com"]
[Source "ChessBase"]
[SourceQuality "1"]
[TimeControl "40/6000+30:3000+30"]

{[%evp 12,94,0,0,14,12,14,12,11,0,0,0,0,6,0,-13,11,0,0,0,-8,0,-6,-36,-10,-27,-31,-50,52,-30,-19,-85,-75,-69,-75,-68,-66,-75,-35,-43,-29,-48,0,-105,-75,-189,-183,-205,-206,-201,-193,-189,-155,-173,-152,-145,-158,-131,-119,-128,-131,-221,-105,-200,-114,-174,-174,-222,-104,-169,-102,-143,0,-175,-172,-203,-203,-203,-179,-29994,-29995,-29996,-29997,-29997,-29998]} 1. e4 {[%emt 0:00:05]} e6 {[%emt 0:00:09]} 2. d4 {[%emt 0:00:11]} d5 {[%emt 0:00:03]} 3. Nc3 {[%emt 0:00:08]} Nf6 {[%emt 0:00:04]} 4. e5 {[%emt 0:00:07]} Nfd7 {[%emt 0:00:03]} 5. Nce2 {[%emt 0:00:10]} c5 {[%emt 0:00:07]} 6. c3 {[%emt 0:00:07]} Nc6 {[%emt 0:00:05]} 7. Nf3 {[%emt 0:00:05]} a5 {[%emt 0:00:17] C11: French: Classical System: 4 e5 and 4 Bg5 dxe4.} 8. a4 {[%emt 0:00:34]} Qb6 {[%emt 0:01:05]} 9. g3 {[%emt 0:03:44]} Be7 {[%emt 0:02:08] The position is equal.} 10. Bg2 {[%emt 0:02:03]} O-O {[%emt 0:01:41]} 11. O-O {[%emt 0:00:10]} Qa6 {[%emt 0:00:58]} 12. Re1 {[%emt 0:04:59]} b5 {[%emt 0:02:11] [#]} 13. Bg5 $146 {[%emt 0:02:10]} ({Predecessor:} 13. axb5 Qxb5 14. dxc5 Bxc5 15. b4 Bb6 16. Ned4 Nxd4 17. Nxd4 Qc4 18. Ra3 Bb7 19. bxa5 Rxa5 {0-1 (42) Beukes,D (2284)-Amin,B (2701) Lilongwe 2021}) 13... Rb8 {[%emt 0:10:00]} 14. Qc2 {[%emt 0:04:06]} h6 {[%emt 0:10:18]} 15. Bxe7 {[%emt 0:02:14]} Nxe7 {[%emt 0:00:04]} 16. Nf4 {[%emt 0:05:20]} bxa4 {[%emt 0:07:09]} 17. Rxa4 {[%emt 0:01:41]} Qb5 {[%emt 0:08:09]} 18. Rea1 {[%emt 0:06:30]} Nc6 {[%emt 0:19:08]} 19. R4a2 {[%emt 0:04:30]} Nb6 {[%emt 0:08:52]} (19... Qb6 $15) 20. g4 {[%emt 0:10:12]} (20. Bf1 $14 Nc4 21. Nd3) 20... cxd4 $1 $11 {[%emt 0:03:12]} 21. Bf1 {[%emt 0:04:45]} (21. cxd4 $2 Nb4 22. Qc5 Qxc5 23. dxc5 Nxa2 24. Rxa2 Nc4 $19) (21. Nxd4 $11 {keeps the balance.} Qc5 22. Qd1 (22. Nxc6 Qxc6 23. h3 a4 $11) 22... Nxe5 23. Rxa5) 21... Nc4 $17 {[%emt 0:02:17]} 22. Nxd4 {[%emt 0:04:26]} Qb6 {[%emt 0:05:32]} 23. Nxc6 {[%emt 0:06:24]} Qxc6 {[%emt 0:00:08]} 24. Re1 {[%emt 0:07:11]} Qb6 {[%emt 0:05:14] Inhibits b3.} 25. Bd3 {[%emt 0:03:48]} Ba6 {[%emt 0:06:51]} ({But not} 25... Nxb2 26. Rb1 Qc7 27. Rbxb2 $16 (27. Raxb2 Rxb2 28. Qxb2 Qxe5 $16)) 26. Qe2 {[%emt 0:05:05][%cal Og4g5]} Rfc8 {[%emt 0:04:08]} (26... g6 $15) 27. Kh1 {[%emt 0:02:19]} (27. g5 $11 hxg5 28. Nh3) 27... Qc6 {[%emt 0:05:14]} 28. Rg1 {[%emt 0:02:26]} (28. f3 $17) 28... d4+ $1 $19 {[%emt 0:01:34]} 29. f3 {[%emt 0:03:40]} dxc3 {[%emt 0:03:00]} 30. bxc3 {[%emt 0:00:52]} Bb7 {[%emt 0:00:26]} 31. Be4 {[%emt 0:01:46]} Qc5 {[%emt 0:00:20]} 32. Nd3 {[%emt 0:02:19]} Qe3 {[%emt 0:00:49]} 33. Qxe3 {[%emt 0:01:34]} Nxe3 {[%emt 0:00:02]} 34. Bxb7 {[%emt 0:01:53]} Rxb7 {[%emt 0:00:02]} 35. Rxa5 {[%emt 0:03:29]} Rxc3 {[%emt 0:00:12]} 36. Nf4 {[%emt 0:02:19]} (36. Nc5 $17 Rb8 37. Nd7) 36... g6 {[%emt 0:05:45]} (36... Rb2 $19 {is more deadly. Strongly threatening ...Rcc2.} 37. Raa1 Kh7) 37. h4 {[%emt 0:03:11]} (37. Rga1 $17 {might work better.}) 37... Rc2 {[%emt 0:00:31]} (37... Rb4 $1 $19 {[%cal Rb4f4]} 38. Ra8+ Kg7 39. Nxe6+ fxe6 40. Ra7+ Kg8 41. Ra8+ Kf7 42. Ra7+ Kg8 43. Ra8+ Kh7 44. Ra7+ Kh8 45. Ra8+ Kh7 46. Ra7+ Kh8 47. Ra8+ Kh7) 38. Ra8+ {[%emt 0:01:56]} (38. Ra3 $17 {was worth a try.} Nc4 39. Ra8+ Kh7 40. Rg2 Rc1+ 41. Rg1 Rxg1+ 42. Kxg1) 38... Kh7 {[%emt 0:00:37]} 39. Nd3 {[%emt 0:01:24] Against Rbb2} (39. Rga1 $142) 39... Re2 {[%emt 0:00:40]} (39... Rb3 $19 {has better winning chances.} 40. Ne1 Re2) 40. Rc1 {[%emt 0:00:44]} (40. Ra3 $17) 40... Rd2 {[%emt 0:00:51]} ({Better is} 40... Nd5 $1 $19 {And now ...Rb3 would win.} 41. Ra4 Re3) 41. Ne1 {[%emt 0:54:44] Rcc8 would kill now.} Re2 {[%emt 0:12:25] aiming for ...Rbb2. Black is more active.} 42. Nd3 {[%emt 0:00:00] [#] Prevents Rbb2.} Nd5 $1 {[%emt 0:15:36]} 43. g5 {[%emt 0:00:00]} hxg5 {[%emt 0:03:43]} 44. hxg5 {[%emt 0:00:00]} Rb3 {[%emt 0:03:00]} 45. Nc5 {[%emt 0:00:00] [#]} (45. Rd1 $19) 45... Rbb2 $1 {[%emt 0:04:58] Black mates.} ({Stronger than} 45... Rxf3 46. Nd7 $17) 46. Nxe6 {[%emt 0:00:00]} Rh2+ {[%emt 0:00:16]} 47. Kg1 {[%emt 0:00:00]} Rbg2+ {[%emt 0:00:09] Weighted Error Value: White=0.44/Black=0.21 (precise)} 0-1

[Event "4NCL 2021-22"]
[Site "England"]
[Date "2022.04.30"]
[Round "7.65"]
[White "Reimanis, Ritvars"]
[Black "Cherniaev, Alexander"]
[Result "1/2-1/2"]
[ECO "A40"]
[WhiteElo "2515"]
[BlackElo "2407"]
[Annotator "TA"]
[PlyCount "30"]
[EventDate "2021.11.27"]
[EventType "team-tourn"]
[EventCountry "ENG"]
[SourceTitle "playchess.com"]
[Source "ChessBase"]
[SourceQuality "1"]
[TimeControl "40/6000+30:3000+30"]

{[%evp 12,30,23,22,22,12,17,17,58,35,41,32,34,42,43,37,44,43,44,41,52]} 1. d4 {[%emt 0:01:11]} e6 {[%emt 0:05:47]} 2. c4 {[%emt 0:00:37]} b6 {[%emt 0:00:05]} 3. Nf3 {[%emt 0:00:17]} Bb7 {[%emt 0:00:07]} 4. g3 {[%emt 0:00:11]} Bb4+ {[%emt 0:00:05]} 5. Bd2 {[%emt 0:00:07]} Bxf3 {[%emt 0:00:05]} 6. exf3 {[%emt 0:00:05]} Bxd2+ {[%emt 0:00:07]} 7. Qxd2 {[%emt 0:00:22]} ({Don't play} 7. Kxd2 Nc6 8. d5 Nd4 $15) 7... Ne7 {[%emt 0:00:57] A40: Unusual replies to 1 d4.} 8. Bg2 {[%emt 0:26:04] 8.Nc3 gains popularity.} d5 {[%emt 0:00:12]} 9. cxd5 {[%emt 0:00:51]} exd5 {[%emt 0:00:08] The position is equal.} 10. Nc3 {[%emt 0:01:04] White is slightly better.} O-O {[%emt 0:00:46]} 11. O-O {[%emt 0:00:09][%cal Bh1f1,Bf1e1,Be1e3][%mdl 32]} Qd6 {[%emt 0:04:32]} 12. Rac1 {[%emt 0:00:39] [#] Hoping for Nb5.} c6 {[%emt 0:00:08] Against Nb5} 13. Rfe1 {[%emt 0:13:58] [#]} Nd7 $146 {[%emt 0:00:50]} ({Predecessor:} 13... Re8 14. Nd1 Na6 15. Ne3 Nc7 16. f4 Qd7 17. Qd3 Nb5 18. Bf3 Nd6 19. Bg4 f5 20. Bh3 g6 21. f3 Rf8 22. Kf2 Rae8 23. Bf1 Rf6 24. Rc2 Re6 25. Rce2 {½-½ (25) Soto,C (2100)-Gawehns,K (2376) Liape email 2002}) 14. Bh3 {[%emt 0:05:08] Black must now prevent Qf4.} Nf6 {[%emt 0:00:47]} 15. Re3 {[%emt 0:00:59]} Rfe8 {[%emt 0:00:19] Weighted Error Value: White=0.05 (flawless) /Black=0.09 (flawless)} 1/2-1/2